Cogmind - Beta 10.2 @@@ ROGUE MODE // 2022.02.26 @ 18:51:21 Player: W_W Result: Core destroyed Performance ------------- Evolutions (3) 1500 Regions Visited (6) 1200 Robots Destroyed (164) 820 Value Destroyed (5328) 5328 Prototype IDs (31) 620 Alien Tech Used (0) 0 Bonus (1981) 1981 TOTAL SCORE: 11449 Bonus ------- High Alert Combat Kills 1548 Follower Combat Kills 223 Aligned with FarCom 300 Friendly Fire -90 Cogmind --------- Core Integrity 0/700 Matter 49/300 Energy 96/290 System Corruption 3% Temperature Cool (673) Movement Treading (190) Ox1 Location -7/Factory Parts ------- > --- POWER (1) -------- Reinforced Deuterium Engine > --- PROPULSION (4) --- Armored Treads Armored Treads Armored Treads Medium Treads > --- UTILITY (4) ------ Large Storage Unit Large Storage Unit Layered Light Armor Plating Layered Light Armor Plating > --- WEAPON (4) ------- Plasma Cannon Cooled Particle Cannon Gauss Rifle Assault Cannon > --- INVENTORY (16) --- Deuterium Engine Armored Treads Armored Treads High-capacity Matter Pod (200) Improved Medium Armor Plating Layered Light Armor Plating Sensor Drone Bay (20/20) Improved EM Pulse Cannon Gauss Cannon AWS/Autocannon Grenade Launcher Grenade Launcher Rocket Launcher Katana Peak State ------------ > --- POWER ------------ Deuterium Engine > --- PROPULSION ------- Advanced Treads Advanced Treads Advanced Treads Medium Treads > --- UTILITY ---------- Large Storage Unit Large Storage Unit Improved Light Armor Plating Improved Light Armor Plating > --- WEAPON ----------- Cooled Particle Cannon AWS/Autocannon > --- INVENTORY -------- Deuterium Engine Advanced Treads Advanced Treads High-capacity Matter Pod Improved Light Armor Plating Improved Light Armor Plating Sensor Drone Bay Heavy Particle Gun Heavy Particle Gun Plasma Cannon Plasma Cannon Plasma Cannon Improved Assault Rifle Grenade Launcher Grenade Launcher Katana [Rating: 64] Favorites ----------- Power Deuterium Engine Engine Deuterium Engine Propulsion Light Treads Treads Light Treads Flight Unit Improved VTOL Module Utility Large Storage Unit Device Long-range Sensor Array Storage Large Storage Unit Protection Improved Light Armor Plating Weapon AWS/Autocannon Energy Gun Heavy EM Shotgun Energy Cannon Plasma Cannon Ballistic Gun Gauss Rifle Ballistic Cannon AWS/Autocannon Launcher Grenade Launcher Slashing Weapon Katana Build | -11 -10 -10 -10 -9 -8 -7 ------- Run | Scr Mat Min Exi Min Mat Fac Slots Evolved 6 | . . . . . 4 2 Power . | . . . . . . . Propulsion 2 | . . . . . . 2 Utility 2 | . . . . . 2 . Weapon 2 | . . . . . 2 . Parts Attached 89 | 7 10 4 . . 39 29 Power 5 | 1 1 . . . 2 1 Engine 5 | 1 1 . . . 2 1 Core . | . . . . . . . Reactor . | . . . . . . . Propulsion 24 | 2 . 2 . . 13 7 Treads 22 | 2 . 2 . . 11 7 Leg . | . . . . . . . Wheel . | . . . . . . . Hover . | . . . . . . . Flight 2 | . . . . . 2 . Utility 21 | 2 3 . . . 11 5 Device 2 | . . . . . 1 1 Storage 7 | 2 3 . . . 2 . Processor . | . . . . . . . Hackware . | . . . . . . . Protection 12 | . . . . . 8 4 Artifact . | . . . . . . . Weapon 39 | 2 6 2 . . 13 16 Energy Gun 5 | . . . . . 5 . Energy Cannon 13 | . 4 . . . 2 7 Ballistic Gun 6 | 2 . . . . 1 3 Ballistic Cannon 2 | . . . . . 1 1 Launcher 11 | . 2 2 . . 4 3 Special Weapon . | . . . . . . . Impact Weapon . | . . . . . . . Slashing Weapon 2 | . . . . . . 2 Piercing Weapon . | . . . . . . . Special Melee Weapon . | . . . . . . . Unidentified Prototypes 6 | . . . . . 5 1 Parts Lost . | . . . . . . . Power . | . . . . . . . Propulsion . | . . . . . . . Utility . | . . . . . . . Weapon . | . . . . . . . Highest Loss Streak . | . . . . . . . Average Slot Usage (%) 87 | . 99 100 100 100 80 88 Engine 9 | . 14 14 14 14 9 7 Treads 23 | . 28 28 28 28 17 28 Storage 19 | . 28 28 28 28 18 15 Protection 12 | . . . . . 17 15 Energy Cannon 8 | . 21 17 14 14 3 9 Ballistic Gun 1 | . 6 . . . . 2 Ballistic Cannon 5 | . . . . . 8 5 Launcher 4 | . . 10 14 14 3 1 Naked Turns . | . . . . . . . Heaviest Build 118 | 11 45 45 44 44 118 114 Greatest Support 94 | 40 40 40 40 40 44 94 Greatest Overweight (x) 5 | 1 1 1 1 1 5 2 Average Overweight (x) 1 | . . 1 1 1 2 . Largest Inventory Capacity 16 | 6 16 16 16 16 16 16 Average Capacity 15 | 5 12 16 16 16 16 16 Most Carried 16 | 3 16 16 16 16 16 16 Average Carried 15 | 2 11 16 15 15 15 15 Final Capacity 16 | 6 16 16 16 16 16 16 Final Carried 16 | 3 16 16 16 16 16 16 Class Distribution -------------------- 66% | Tank 33% | Mutant Dominant Class ---------------- Mutant | -10/Materials Mutant | -10/Mines Mutant | -10/Exiles Mutant | -9/Mines Tank | -8/Materials Tank | -7/Factory Resources | -11 -10 -10 -10 -9 -8 -7 ----------- Run | Scr Mat Min Exi Min Mat Fac Matter Collected 2108 | 484 479 60 . 10 579 496 Remotely . | . . . . . . . Salvage Created 4948 | 357 557 96 . 86 2491 1361 Parts 272 | 26 41 6 . 3 127 69 Haulers Intercepted 8 | . 2 . . . 6 . Recyclers Shooed 10 | 1 3 . . . 4 2 Parts Field Recycled . | . . . . . . . Retrieved Matter . | . . . . . . . Parts Self-Destructed . | . . . . . . . Prevented . | . . . . . . . Kills | -11 -10 -10 -10 -9 -8 -7 ------- Run | Scr Mat Min Exi Min Mat Fac Combat Hostiles Destroyed 102 | . 11 2 . 2 48 39 Guns 7 | . 4 . . . 3 . Cannons 75 | . 4 2 . 1 36 32 AOE 20 | . 3 . . 1 9 7 Classes Destroyed 17 | 3 5 2 . . 5 2 Worker 15 | 4 4 2 . 1 4 . Builder 6 | . . . . . 5 1 Tunneler 9 | 9 . . . . . . Hauler 8 | . 2 . . . 6 . Recycler 11 | 1 . . . . 8 2 Mechanic 1 | . . . . . 1 . Operator 2 | . 1 . . . 1 . Watcher 10 | . 2 . . . 5 3 Swarmer 14 | . 3 . . . 3 8 Grunt 52 | . 8 . . 2 31 11 Brawler 3 | . . . . . 1 2 Duelist 6 | . . . . . 3 3 Protector 1 | . . . . . 1 . Sentry 14 | . . 1 . . 9 4 Demolisher 1 | . . 1 . . . . Hunter 2 | . . . . . . 2 Programmer 9 | . . . . . . 9 Best Kill Streak 11 | 4 5 3 . 2 11 8 Combat Bots Only 9 | . 4 1 . 2 9 8 Max Kills in Single Turn 6 | 1 5 2 . 1 6 2 Gunslinging . | . . . . . . . Exploded 3 | . 1 . . 1 3 2 Melee . | . . . . . . . Uniques/NPCs Destroyed . | . . . . . . . Combat | -11 -10 -10 -10 -9 -8 -7 -------- Run | Scr Mat Min Exi Min Mat Fac Damage Taken 2845 | . 367 121 . 97 787 1473 Core 805 | . 68 . . . 36 701 Absorbed by Shields . | . . . . . . . Core Remaining (%) 88 | 100 . . . 72 93 . Volleys Fired 216 | 41 38 3 . 6 71 57 Largest 4 | 2 2 2 . 2 1 4 Hottest 218 | 40 136 98 . 98 80 218 Shots Fired 549 | 82 73 5 . 7 193 189 Gun 180 | 82 44 . . . 27 27 Cannon 335 | . 26 3 . 6 144 156 Launcher 34 | . 3 2 . 1 22 6 Special . | . . . . . . . Kinetic 375 | 82 44 . . . 127 122 Thermal 118 | . 26 3 . 6 22 61 Explosive 34 | . 3 2 . 1 22 6 Electromagnetic 22 | . . . . . 22 . Robot Hit Streak 22 | 16 13 4 . 6 18 22 Robot Miss Streak 6 | 1 5 . . 3 3 6 Penetration Max 1 | . . . . . . 1 Secondary Targets 1 | . 1 . . . . . Max Gunslinging Chain 1 | . 1 . . . . . Autonomous 197 | . . . . . 122 75 Shots Hit Robots 375 | 40 38 4 . 4 156 133 Core Hits 255 | 18 32 5 . 4 119 77 Critical Hits 11 | 1 . . . . 6 4 Critical Kills 2 | 1 . . . . . 1 Critical Parts Destroyed 8 | . . . . . 5 3 Melee Attacks 3 | . . . . . . 3 Impact . | . . . . . . . Slashing 3 | . . . . . . 3 Piercing . | . . . . . . . Sneak Attacks . | . . . . . . . Combat Hostiles . | . . . . . . . Follow-up Attacks . | . . . . . . . Damage Inflicted 20083 | 359 811 205 . 169 10622 7917 Guns 1491 | 359 316 . . . 494 322 Cannons 15134 | . 247 62 . 82 8201 6542 Explosions 3044 | . 229 138 . 82 1591 1004 Melee . | . . . . . . . Ramming 414 | . 19 5 . 5 336 49 Kinetic 14377 | 359 316 . . . 7841 5861 Thermal 2352 | . 247 62 . 82 670 1291 Explosive 2311 | . 229 138 . 82 1324 538 Electromagnetic 629 | . . . . . 451 178 Impact . | . . . . . . . Slashing . | . . . . . . . Piercing . | . . . . . . . Highest Corruption 3 | . . . . . 1 3 Average Corruption 1 | . . . . . 1 2 Corruption Purged . | . . . . . . . Effects 7 | . . . . . 7 . Message Errors 5 | . . . . . 5 . Data Loss (minor) 1 | . . . . . 1 . Targeting Errors 1 | . . . . . 1 . Overload Shots . | . . . . . . . Overflow Damage 2157 | . 13 . . . 1176 968 Projectiles 2006 | . . . . . 1114 892 Explosions 142 | . 12 . . . 57 73 Melee 9 | . 1 . . . 5 3 Knockbacks 52 | . . . . . 32 20 Impact 3 | . . . . . 3 . Kinetic 45 | . . . . . 26 19 Secondary 4 | . . . . . 3 1 Self-Inflicted Damage 168 | . 22 . . 17 129 . Shots 4 | . 1 . . 1 2 . Rammed 35 | . 6 1 . . 25 3 Targets Rammed 41 | . 6 1 . 1 30 3 Kicked . | . . . . . . . Crushed 6 | . . . . 1 5 . Highest Temperature 1411 | . 240 72 . 221 210 1411 Average Temperature 228 | . 56 34 . 112 52 499 Received Heat Transfer 639 | . 177 9 . 45 243 165 Effects 63 | . . . . . . 63 Shutdowns 6 | . . . . . . 6 Energy Bleed 8 | . . . . . . 8 Interference 11 | . . . . . . 11 Matter Decay 10 | . . . . . . 10 Short Circuit 3 | . . . . . . 3 Damage (minor) 6 | . . . . . . 6 Damage (major) 13 | . . . . . . 13 Damage (core) 6 | . . . . . . 6 Siege Activations . | . . . . . . . Robots Corrupted . | . . . . . . . Combat Hostiles . | . . . . . . . Parts Fried 2 | . . . . . 1 1 Impact Corruptions 5 | . 1 . . . 3 1 Robots Melted . | . . . . . . . Combat Hostiles . | . . . . . . . Parts Melted 5 | . 1 . . . 2 2 Heat Transferred 3369 | . 444 111 . 148 1000 1666 Parts Sabotaged . | . . . . . . . Parts Stolen . | . . . . . . . Parts Stripped . | . . . . . . . Power Chain Reactions 3 | . . . . . 3 . Missiles Intercepted . | . . . . . . . Alert | -11 -10 -10 -10 -9 -8 -7 ------- Run | Scr Mat Min Exi Min Mat Fac Peak Influence 1769 | 65 240 32 . 70 1769 1501 Initial 804 | . 3 12 . . 27 804 Average 469 | 28 98 11 . 64 386 900 Maximum Alert Level 5 | . 1 . . . 5 4 Low Security (%) 51 | 100 90 100 . 100 62 . Level 1 4 | . 9 . . . 6 . Level 2 11 | . . . . . 3 32 Level 3 20 | . . . . . 14 45 Level 4 10 | . . . . . 8 22 Level 5 2 | . . . . . 4 . High Security . | . . . . . . . Max Security . | . . . . . . . Squads Dispatched 26 | . 2 . . . 9 15 Investigation 2 | . . . . . 1 1 Extermination 8 | . . . . . . 8 Reinforcement 5 | . 2 . . . 2 1 Assault 9 | . . . . . 5 4 Garrison 2 | . . . . . 1 1 Intercept . | . . . . . . . Construction Impeded 2 | . . . . . 1 1 Haulers Reinforced . | . . . . . . . Stealth | -11 -10 -10 -10 -9 -8 -7 --------- Run | Scr Mat Min Exi Min Mat Fac Distress Signals 7 | . 1 2 . . 2 2 Communications Jammed . | . . . . . . . Distress Signals . | . . . . . . . Times Spotted 134 | . 20 4 . 1 60 49 Peak Tracking Total 9 | . 3 2 . 1 9 6 Tactical Retreats 8 | . . . . . 4 4 Traps | -11 -10 -10 -10 -9 -8 -7 ------- Run | Scr Mat Min Exi Min Mat Fac Traps Triggered 5 | . . . . . 5 . Indirectly . | . . . . . . . Trap Hack Attempts . | . . . . . . . Triggered . | . . . . . . . Disarmed . | . . . . . . . Reprogrammed . | . . . . . . . Reused . | . . . . . . . Traps Extracted . | . . . . . . . Installed . | . . . . . . . Triggered . | . . . . . . . Machines | -11 -10 -10 -10 -9 -8 -7 ---------- Run | Scr Mat Min Exi Min Mat Fac Machines Disabled 28 | . 2 . . . 16 10 Max in Single Turn 3 | . 1 . . . 2 3 Garrison Access 1 | . . . . . 1 . Machines Sabotaged . | . . . . . . . Garrisons Compromised . | . . . . . . . Overloaded Fab Kills . | . . . . . . . Fab Network Shutdowns . | . . . . . . . Hacking | -11 -10 -10 -10 -9 -8 -7 --------- Run | Scr Mat Min Exi Min Mat Fac Machines Accessed 41 | . 8 . 3 1 11 18 Terminals 25 | . 6 . . . 9 10 Fabricators 2 | . . . . . . 2 Repair Stations 2 | . . . . . . 2 Recycling Units 2 | . 2 . . . . . Scanalyzers 3 | . . . . . 1 2 Garrison Access 3 | . . . . . 1 2 Total Hacks 145 | . 23 . 33 1 44 44 Successful 104 | . 17 . 33 1 31 22 Failed 41 | . 6 . . . 13 22 Catastrophic 8 | . 1 . . . 2 5 Database Lockouts . | . . . . . . . Manual 77 | . 22 . 1 . 33 21 Terminals 70 | . 18 . . . 28 24 Fabricators 4 | . . . . . . 4 Repair Stations 4 | . . . . . . 4 Recycling Units 5 | . 5 . . . . . Scanalyzers 23 | . . . . . 15 8 Garrison Access 5 | . . . . . 1 4 Terminal Hacks 41 | . 1 . 33 1 1 5 Record 32 | . . . 32 . . . Prototype ID Bank 1 | . 1 . . . . . Open Door 1 | . . . . 1 . . Terminal Index 1 | . . . . . . 1 Fabricator Index 1 | . . . . . 1 . Repair Station Index 1 | . . . . . . 1 Unreport Threat 1 | . . . . . . 1 Locate Traps 1 | . . . . . . 1 Dispatch Records 1 | . . . . . . 1 EX-Prototype ID Bank 1 | . . . 1 . . . Fabricator Hacks . | . . . . . . . Repair Station Hacks 4 | . . . . . . 4 Scan Component 2 | . . . . . . 2 Repair 2 | . . . . . . 2 Recycling Unit Hacks . | . . . . . . . Scanalyzer 21 | . . . . . 15 6 Insert Component 10 | . . . . . 7 3 Analyze 11 | . . . . . 8 3 Garrison Access Hacks . | . . . . . . . Unauthorized Hacks 38 | . 16 . . . 15 7 Terminals 33 | . 13 . . . 14 6 Track 4 | . 1 . . . 2 1 Assimilate 9 | . 3 . . . 5 1 Botnet 16 | . 6 . . . 7 3 Detonate 2 | . 1 . . . . 1 Disrupt 2 | . 2 . . . . . Fabricators . | . . . . . . . Repair Stations . | . . . . . . . Recycling Units 3 | . 3 . . . . . Monitor 1 | . 1 . . . . . Reject 1 | . 1 . . . . . Mask 1 | . 1 . . . . . Scanalyzers . | . . . . . . . Garrison Access 2 | . . . . . 1 1 Reprogram 2 | . . . . . 1 1 Data Cores Recovered 2 | . 1 . . . 1 . Used . | . . . . . . . Hacking Detections 36 | . 8 . . . 10 18 Full Trace Events 2 | . . . . . 2 . Feedback Events . | . . . . . . . Feedback Blocked . | . . . . . . . Robot Schematics Acquired . | . . . . . . . Robots Built . | . . . . . . . Matter . | . . . . . . . Time . | . . . . . . . Total Robot Build Rating . | . . . . . . . Part Schematics Acquired 8 | . . . . . 6 2 Parts Built . | . . . . . . . Matter . | . . . . . . . Time . | . . . . . . . Total Part Build Rating . | . . . . . . . Parts Repaired 2 | . . . . . . 2 Time 38 | . . . . . . 38 Parts Recycled . | . . . . . . . Recycled Matter . | . . . . . . . Retrieved Matter . | . . . . . . . Retrieved Components . | . . . . . . . Parts Scanalyzed 9 | . . . . . 6 3 Part Schematics Acquired 8 | . . . . . 6 2 Parts Damaged 2 | . . . . . 2 . Bothacking | -11 -10 -10 -10 -9 -8 -7 ------------ Run | Scr Mat Min Exi Min Mat Fac Used RIF Installer . | . . . . . . . Robots Hacked . | . . . . . . . Non-combat . | . . . . . . . Combat . | . . . . . . . Robot Hacks Applied . | . . . . . . . Relay Couplers Released 2 | . . . . . 2 . Machine Destruction 2 | . . . . . 2 . Robots Rewired . | . . . . . . . Allies Hacked 2 | . . . . . . 2 Hacks Repelled . | . . . . . . . Allies | -11 -10 -10 -10 -9 -8 -7 -------- Run | Scr Mat Min Exi Min Mat Fac Total Allies 7 | . . 1 . . 3 3 Largest Group 3 | . . 1 . . 3 3 Highest-Rated Group 62 | . . 31 . . 48 62 Highest-Rated Ally 38 | . . 31 . . 16 38 Total Orders . | . . . . . . . Ally Attacks 53 | . . 2 . . 17 34 Total Damage 694 | . . 21 . . 165 508 Kills 8 | . . . . . 2 6 Allies Corrupted . | . . . . . . . Allies Melted . | . . . . . . . Intel | -11 -10 -10 -10 -9 -8 -7 ------- Run | Scr Mat Min Exi Min Mat Fac Robot Analysis Total . | . . . . . . . Derelict Logs Recovered 3 | . . 2 . 1 . . Drone Launches . | . . . . . . . Drone Recoveries . | . . . . . . . Exploration | -11 -10 -10 -10 -9 -8 -7 ------------- Run | Scr Mat Min Exi Min Mat Fac Turns Passed 15434 | 477 1441 858 1225 366 6766 4301 Spaces Moved 7208 | 226 718 467 679 195 2613 2310 Core 12 | 12 . . . . . . Treads 7196 | 214 718 467 679 195 2613 2310 Legs . | . . . . . . . Wheels . | . . . . . . . Hover . | . . . . . . . Flight . | . . . . . . . Fastest Speed 50 | 50 160 180 180 180 180 148 Average Speed 182 | 154 173 180 180 180 205 162 Slowest Speed 260 | 160 180 180 180 180 260 190 Overloaded Moves . | . . . . . . . Propulsion Burnouts . | . . . . . . . Robots Hopped . | . . . . . . . Cave-ins Triggered . | . . . . . . . Exploration Rate (%) 65 | 8 99 85 91 41 96 35 Regions Visited 6 Branch Regions 3 Pre-discovered Areas 3 | . . 1 1 1 . . Known Exits Taken . | . . . . . . . Unknown Exits Taken 6 | 1 1 1 1 1 1 . Scrap Searched 2 | . . 1 . 1 . . Spaces Dug 68 | . 12 . . . 54 2 Terrain Destroyed 318 | . 14 16 . 8 170 110 Melee 2 | . . . . . . 2 Projectile 42 | . . . . 2 24 16 AOE 274 | . 14 16 . 6 146 92 Terrain Rammed . | . . . . . . . Walls Destroyed . | . . . . . . . Machines Disabled . | . . . . . . . Actions | -11 -10 -10 -10 -9 -8 -7 --------- Run | Scr Mat Min Exi Min Mat Fac Total 9195 | 276 848 480 684 203 3926 2778 Wait 1477 | . 39 1 . . 1103 334 Move 7202 | 225 717 466 678 194 2612 2310 Hop . | . . . . . . . Pick Up 70 | 3 22 1 2 1 25 16 Fast Attach 25 | 7 3 . . . 9 6 Attach 7 | . . . . . 3 4 Detach 1 | . 1 . . . . . Swap 57 | . 7 4 . . 27 19 Drop 96 | . 15 4 4 1 46 26 Fire 216 | 41 38 3 . 6 71 57 Melee 3 | . . . . . . 3 Ram . | . . . . . . . Kick . | . . . . . . . Crush 41 | . 6 1 . 1 30 3 Escape Stasis . | . . . . . . . Rewire . | . . . . . . . Trap . | . . . . . . . Miscellaneous . | . . . . . . . Route ------- -11/Scrapyard -10/Materials (discovered 5 exits: [*Mat x3] / [*Min x2]) -10/Mines (discovered 3 exits: [*Mat x2] / *Exi) -10/Exiles (discovered 2 exits: *Min x2) -9/Mines (discovered 2 exits: *Mat x2) -8/Materials (discovered 3 exits: *Fac x3) -7/Factory (discovered 2 exits: [*Fac x2]) History --------- Turn | Location | Event 5 | -11/Scrapyard | Discovered new exit (range 16) 478 | -11/Scrapyard | Entered Materials 479 | -10/Materials | Build established: Mutant 494 | -10/Materials | Discovered new exit (range 5) 776 | -10/Materials | Discovered new exit (range 14) 941 | -10/Materials | Discovered new exit (range 9) 1171 | -10/Materials | Discovered new exit (range 13) 1757 | -10/Materials | Discovered new exit (range 10) 1919 | -10/Materials | Entered Mines 2008 | -10/Mines | Met a Derelict bent on vengeance 2015 | -10/Mines | Learned 4 Materials zone layouts 2066 | -10/Mines | Received a Mining Laser from a helpful Derelict 2120 | -10/Mines | Assembled infested the area 2245 | -10/Mines | Learned location of Storage (-9) 2313 | -10/Mines | Discovered new exit (range 15) 2313 | -10/Mines | Discovered new exit (range 7) 2571 | -10/Mines | Joined a pair of Derelicts in attacking an 0b10 outpost 2769 | -10/Mines | Deemed a non-threat by the Exiles lab entrance 2769 | -10/Mines | Discovered new exit (range 5) 2777 | -10/Mines | Entered Exiles 2806 | -10/Exiles | Discovered new exit (range 15) 2860 | -10/Exiles | Met 8R-AWN 2889 | -10/Exiles | Met EX-HEX 2943 | -10/Exiles | Met EX-BIN 3128 | -10/Exiles | Learned location of Zion (-6) 3152 | -10/Exiles | Met EX-DEC 3268 | -10/Exiles | Visited The Gauntlet 3638 | -10/Exiles | Aligned with FarCom system 3640 | -10/Exiles | Given EX-Vault access code 3681 | -10/Exiles | Opened EX-Vault 3726 | -10/Exiles | Warned to stay clear of 0b10 Research branches 3804 | -10/Exiles | Found AWS/Autocannon 3987 | -10/Exiles | Discovered new exit (range 10) 4002 | -10/Exiles | Left Exiles lab with AWS/Autocannon 4002 | -10/Exiles | Entered Mines 4179 | -9/Mines | Discovered new exit (range 5) 4225 | -9/Mines | Found the Drone Emporium 4234 | -9/Mines | Found Prototype Device 4269 | -9/Mines | Found a hidden stash of uninstalled traps 4285 | -9/Mines | Discovered new exit (range 13) 4368 | -9/Mines | Entered Materials 4368 | -8/Materials | Evolved 4 slots: Utility x2, Weapon x2 5010 | -8/Materials | Build established: Tank 5437 | -8/Materials | Identified Sensor Drone Bay 7834 | -8/Materials | Discovered new exit (range 15) 8587 | -8/Materials | Discovered new exit (range 14) 9168 | -8/Materials | First assault squad dispatched 9302 | -8/Materials | Destroyed 8 combat bots 9767 | -8/Materials | Discovered new exit (range 12) 10834 | -8/Materials | Garrison activated, responded to threat 10865 | -8/Materials | Destroyed 9 combat bots 11134 | -8/Materials | Entered Factory 11134 | -7/Factory | Accompanied by 3 allies 11134 | -7/Factory | Evolved 2 slots: Propulsion x2 11403 | -7/Factory | Discovered new exit (range 14) 12334 | -7/Factory | First assault squad dispatched 12971 | -7/Factory | Destroyed 8 combat bots 13293 | -7/Factory | P-60 Hacker assimilated hostile G-50 Soldier 13614 | -7/Factory | Garrison activated, responded to threat 14452 | -7/Factory | Discovered new exit (range 15) 14848 | -7/Factory | P-60 Hacker assimilated hostile O-24 Administrator 14943 | -7/Factory | Repaired Grenade Launcher 15078 | -7/Factory | Repaired Adv. Treads 15397 | -7/Factory | Core integrity fell below 50% 15419 | -7/Factory | Core integrity fell below 20% 15436 | -7/Factory | Core destroyed Last Messages --------------- 15403_ Overheating: Energy bleed (-8). 15404_ Acquired 23 matter. 15406_ Overheating: Energy bleed (-8). 15406_ Acquired 41 matter. 15407_ Overheating: Arm. Treads damaged (-54). 15410_ Overheating: Energy bleed (-9). 15412_ Overheating: System interference. 15412_ Assault Cannon temporarily disabled. 15412_ Acquired 36 matter. 15413_ Overheating: Plasma Cannon damaged (-25). 15414_ Overheating: Assault Cannon damaged (-18). 15415_ Overheating: Core damaged (-98). 15418_ Overheating: Matter decay (-30). 15419_ Overheating: Core damaged (-70). 15420_ Overheating: Energy bleed (-14). 15423_ U-05 Engineer builds a Wall. 15429_ Overheating: Matter decay (-17). 15430_ Overheating: Matter decay (-16). 15435_ Overheating: Matter decay (-11). 15436_ Overheating: Core damaged (-112). Map ----- +----------------------------------------------------+ | ?????????????????????????????????????????????????? | | ?????????????????????????????????????????????????? | | ?????????????????????????????????????????????????? | | ?????????????????????????????????????????????????? | | ?????????????????????????????????????????????????? | | ?????????????????????????????????????????????????? | | ???????????????????????????? ????????????????????? | | ???????????????????????????? ????????????????????? | | ???????????????????????????? ????????????????????? | | ????????????????????????????+#???????????????????? | | ????????????????????????????!#???????????????????? | | ????????????????????????????%#???????????????????? | | ?????????????????????????###*###?????????????????? | | ?????????????????????????# ! #?????????????????? | | ????????????????????????? #??????????? ###### | | ?????????????????????????? +??????????? | | ?????????????????????????? = #??????????? | | ?????????????????????????? =![ #???????????? | | ?????????????????########## % #????????????? | | ?????????????????# ! # ############??? | | ?????????????????# """ + ?? | | ?????????????????# =! """ # ??? | | ?????????????????# =! """ # [= ?? | | ?????????????????# !! ## ##############+### | | ?????????????????# """ ##=#???????????# # | | ?????????????????# """@## #???????????# # | | ?????????????????# ] """ ## #???????????# + | | ?????????????????# ## ############# # | | ?????????????????########+## + ### | | ???????????????????????#" ##+############# #?# | | ???????????????????????## # ???????????# #?# | | ???????????????????????#"=# ""???????????# #?# | | ???????????????????????##!# ""???????????# #?# | | ????????????????????????# # ""???????????######?# | | ????????????????????????#*# ?????????????????# | | ????????????????????????# #################?????# | | ???????????????########## #??# #?????# | | ???????????????# # #??# #?????# | | ???????????????# ] # #??# """""" #??#### | | ???????????????# """ # "??# """""" #??# | | ???????????????# """ # #### """""" #??# | | ???????????????# """ # + """""" #??# | | ???????????????# # #### #??# | | ???????????????# """ # #??# """""" #??# | | ???????????????# """ [#%#??# """""" ####+##+ | | ???????????????# """ #=#??#? """""" # | | ???????????????# # #??# """""" # | | ??############## """ # #??# # | | ?? ^ # """ #"#??#########+#### """" | | ? # """ #%#### # """" | +----------------------------------------------------+ Best States ------------- Heat Dissipation 34 Energy Generation 16 Energy Capacity 290 Matter Stores 400 Matter Capacity 400 Sight Range 16 Terrain Scan Density 10 Armor Coverage 300 Evasion (%) 40 Recoil Reduction 4 Item Schematics ----------------- Imp. Assault Rifle | -8/Materials | Scanalyzed Grenade Launcher | -8/Materials | Scanalyzed Deuterium Engine | -8/Materials | Scanalyzed Hvy. EM Shotgun | -8/Materials | Scanalyzed Katana | -8/Materials | Scanalyzed Imp. Light Armor Plating | -8/Materials | Scanalyzed Adv. Treads | -7/Factory | Scanalyzed Lyr. Light Armor Plating | -7/Factory | Scanalyzed Robot Schematics ------------------ None Fabricated ------------ Nothing Alien Tech Used ----------------- None Achievements -------------- None Challenges ------------ None Game ------ Seed ArmorHoverCycler Manual? 0 Play Time 01:52:20 Cumulative 138.0 hours Start 2022.02.26 @ 01:28:46 End 2022.02.26 @ 18:51:21 Sessions 3 Manual Loads 0 Difficulty Rogue Special Mode None Game No. 105 Rogue 105 Adventurer 0 Explorer 0 Win Type - Total 0 Types 0/0/0/0/0/0/0/0/0 Lore% 46 Gallery% 57 Achievement% 36 Wizard Run 0 Options --------- ASCII 0 Keyboard 0 Movement Numpad Keybinds 0 Fullscreen 1 Font 18/SmallcapsGlow Map View 76x50 Tactical HUD 1 Map Filters NONE Filters NONE Steam 1 RUN: 8dc92684-860b-4efe-bfd7-79fb148ffc55